[Event "Deutscher Jugend Online Cup 2020"]
[Site "Tornelo"]
[Date "2020.11.14"]
[Round "13"]
[White "Buchinger, Alexis"]
[Black "Besou, Hussain"]
[Result "0-1"]
[ECO "E61"]
[WhiteElo "1496"]
[BlackElo "1804"]
[Annotator "NA RC"]
[PlyCount "88"]
[EventDate "2020.11.13"]
[EventType "k.o."]
[SourceTitle "playchess.com"]
[Source "ChessBase"]
[SourceQuality "1"]
[TimeControl "600+3"]

1. c4 Nf6 2. Nc3 g6 3. g3 Bg7 4. Bg2 O-O 5. e3 d6 6. Nge2 e5 7. O-O Nbd7 8. d4 Re8 9. b3 Nf8 10. Bb2 e4 11. Qc2 Bf5 12. Rad1 h5 13. d5 Qe7 14. Nd4 Bd7 15. Rfe1 h4 16. Ncb5 Bg4 17. Rd2 a6 18. Nc3 N8h7 19. gxh4 Rac8 20. Nde2 Bf5 21. Ng3 Ng4 22. h3 Ne5 23. Ncxe4 Qxh4 24. Kh2 Ng4+ 25. Kg1 Ne5 26. Bxe5 Rxe5 27. Kh2 Ng5 28. Nxf5 Rxf5 29. Ng3 Rf3 30. Qd1 Bc3 31. Bxf3 Bxd2 32. Rh1 Bxe3 33. fxe3 Qxh3+ 34. Kg1 Qxg3+ 35. Bg2 Qxe3+ 36. Kf1 Re8 37. Qa1 Re5 38. Rh3 Nxh3 39. Bxh3 Qxh3+ 40. Kf2 Rf5+ 41. Ke2 Qg2+ 42. Ke3 Rf3+ 43. Kd4 Qd2+ 44. Ke4 Qe3# 0-1

[Event "Deutscher Jugend Online Cup 2020"]
[Site "Tornelo"]
[Date "2020.11.14"]
[Round "13"]
[White "Wartenberg, Alissa"]
[Black "Trunz, Michelle"]
[Result "1-0"]
[ECO "B90"]
[WhiteElo "1463"]
[BlackElo "1673"]
[Annotator "NA RC"]
[PlyCount "141"]
[EventDate "2020.11.13"]
[EventType "k.o."]
[SourceTitle "playchess.com"]
[Source "ChessBase"]
[SourceQuality "1"]
[TimeControl "600+3"]

1. e4 c5 2. Nf3 d6 3. d4 cxd4 4. Nxd4 Nf6 5. Nc3 a6 6. Be3 e5 7. Nb3 Be6 8. f3 Nbd7 9. Qd2 Be7 10. Be2 h6 11. f4 exf4 12. Bxf4 Nc5 13. Nxc5 dxc5 14. Bd3 c4 15. Be2 Qxd2+ 16. Bxd2 Rd8 17. O-O-O b5 18. Bf3 b4 19. Ne2 g5 20. Be3 O-O 21. g3 Kg7 22. Nd4 Bd7 23. Nf5+ Bxf5 24. exf5 c3 25. b3 g4 26. Be2 a5 27. Bb6 Rxd1+ 28. Rxd1 Ra8 29. Bd4 a4 30. bxa4 Rxa4 31. Kb1 h5 32. Bb5 Ra5 33. Bd3 Kg8 34. Re1 Kf8 35. Re5 Rxe5 36. Bxe5 Nd7 37. Bc7 Nc5 38. Kc1 Bg5+ 39. Kd1 Nxd3 40. cxd3 Bd2 41. Bd6+ Ke8 42. Bxb4 Be3 43. Bxc3 Bg1 44. Be5 Bxh2 45. d4 Ke7 46. Ke2 f6 47. Bf4 h4 48. Kf2 h3 49. a4 Kd7 50. Kf1 Kc6 51. a5 Kb5 52. d5 Kxa5 53. d6 Kb6 54. d7 Bg1 55. d8=Q+ Kc6 56. Qc8+ Kd5 57. Qd7+ Ke4 58. Qc6+ Kd3 59. Qb5+ Kd4 60. Qb4+ Kd3 61. Qd6+ Kc4 62. Qc6+ Kd3 63. Kxg1 Ke2 64. Kh2 Kf2 65. Qxf6 Ke2 66. Qg5 Kf3 67. f6 Kf2 68. f7 Kf1 69. f8=Q Ke2 70. Qe5+ Kf2 71. Bd2# 1-0

[Event "Deutscher Jugend Online Cup 2020"]
[Site "Tornelo"]
[Date "2020.11.14"]
[Round "13"]
[White "Trunz, Tamila"]
[Black "Sickmann, Lisa"]
[Result "0-1"]
[ECO "C67"]
[WhiteElo "1379"]
[BlackElo "1510"]
[Annotator "NA RC"]
[PlyCount "76"]
[EventDate "2020.11.13"]
[EventType "k.o."]
[SourceTitle "playchess.com"]
[Source "ChessBase"]
[SourceQuality "1"]
[TimeControl "600+3"]

1. e4 e5 2. Nf3 Nc6 3. Bb5 Nf6 4. O-O Nxe4 5. Re1 Nd6 6. Bxc6 dxc6 7. Nxe5 Be7 8. Qf3 O-O 9. d4 Be6 10. b3 Bd5 11. Qg3 Re8 12. Bh6 Nf5 13. Qf4 Nxh6 14. c4 Be6 15. Nc3 Bb4 16. Re3 Bxc3 17. Rxc3 f6 18. Nf3 Bf5 19. Nh4 g5 20. Qg3 Qxd4 21. Nxf5 Nxf5 22. Qd3 Qxd3 23. Rxd3 Rad8 24. Rf3 Re5 25. g4 Nh4 26. Rxf6 Rde8 27. h3 Re1+ 28. Rxe1 Rxe1+ 29. Kh2 Kg7 30. Rf5 Nxf5 31. gxf5 Re2 32. Kg3 Rxa2 33. Kg4 Kf6 34. f3 h5+ 35. Kxh5 Kxf5 36. h4 Rh2 37. Kh6 Kf6 38. Kh5 Rxh4# 0-1